fUSD/lending_fUSD_20250720
["ID","MTS","AMOUNT","RATE_DAILY","PERIOD"]
[373446745,1753013461549,-420.0,0.00019287,2]
[373446746,1753013461559,-480.0,0.00019287,2]
[373446747,1753013461569,-480.0,0.00019287,2]
[373446748,1753013461579,-480.0,0.00019287,2]
[373446749,1753013461589,-1728.42,0.00019287,2]
[373446750,1753013461599,-420.0,0.00019287,2]
[373446751,1753013461609,-326.92657535,0.00019287,2]
[373446752,1753013461619,-480.0,0.00019287,2]
[373446753,1753013461629,-480.0,0.00019287,2]
[373446754,1753013461639,-480.0,0.00019287,2]
[373446755,1753013461649,-480.0,0.00019287,2]
[373446756,1753013461659,-2001.53,0.00019287,2]
[373446757,1753013461669,-480.0,0.00019287,2]
[373446758,1753013461678,-459.84,0.00019287,2]
[373446759,1753013461688,-480.0,0.00019287,2]
[373446760,1753013461698,-457.08596609,0.00019287,2]
[373446761,1753013461708,-480.0,0.00019287,2]
[373446762,1753013461718,-480.0,0.00019287,2]
[373446763,1753013461728,-2078.86,0.00019287,2]
[373446764,1753013461738,-3754.87,0.00019287,2]
[373446765,1753013461748,-420.0,0.00019287,2]
[373446766,1753013461758,-480.0,0.00019287,2]
[373446767,1753013461768,-1020.01,0.00019287,2]
[373446768,1753013461778,-480.0,0.00019287,2]
[373446769,1753013461788,-420.0,0.00019287,2]
[373446770,1753013461797,-270.09660172,0.00019287,2]
[373446771,1753013461807,-480.0,0.00019287,2]
[373446772,1753013461817,-480.0,0.00019287,2]
[373446773,1753013461827,-151.0,0.00019287,2]
[373446774,1753013461838,-1678.08,0.00019287,2]
[373446775,1753013461848,-420.0,0.00019287,2]
[373446776,1753013461859,-480.0,0.00019287,2]
[373446777,1753013461869,-1813.96,0.00019287,2]
[373446778,1753013461880,-480.0,0.00019287,2]
[373446779,1753013461890,-6637.19,0.00019287,2]
[373446780,1753013461900,-1895.18,0.00019287,2]
[373446781,1753013461910,-420.0,0.00019287,2]
[373446782,1753013461920,-7136.14,0.00019287,2]
[373446783,1753013461930,-480.0,0.00019287,2]
[373446784,1753013461940,-480.0,0.00019287,2]
[373446785,1753013461949,-420.0,0.00019287,2]
[373446786,1753013461959,-5729.04,0.00019287,2]
[373446787,1753013461969,-1008.27,0.00019287,2]
[373446788,1753013461979,-480.0,0.00019287,2]
[373446789,1753013461989,-480.0,0.00019287,2]
[373446790,1753013461999,-420.0,0.00019287,2]
[373446791,1753013462009,-953.76,0.00019287,2]
[373446792,1753013462019,-480.0,0.00019287,2]
[373446793,1753013462030,-480.0,0.00019287,2]
[373446794,1753013462039,-480.0,0.00019287,2]
[373446795,1753013462049,-480.0,0.00019287,2]
[373446796,1753013462058,-440.0,0.00019287,2]
[373446797,1753013462068,-1994.7,0.00019287,2]
[373446798,1753013462078,-420.0,0.00019287,2]
[373446799,1753013462090,-480.0,0.00019287,2]
[373446800,1753013462100,-1969.3,0.00019287,2]
[373446801,1753013462110,-480.0,0.00019287,2]
[373446802,1753013462121,-480.0,0.00019287,2]
[373446803,1753013462131,-1429.26,0.00019287,2]
[373446804,1753013462141,-420.0,0.00019287,2]
[373446805,1753013462151,-2702.34,0.00019287,2]
[373446806,1753013462162,-1064.74,0.00019287,2]
[373446807,1753013462172,-480.0,0.00019287,2]
[373446808,1753013462183,-960.16,0.00019287,2]
[373446809,1753013462193,-1003.77,0.00019287,2]
[373446810,1753013462204,-480.0,0.00019287,2]
[373446811,1753013462215,-480.0,0.00019287,2]
[373446812,1753013462231,-738.76,0.00019287,2]
[373446813,1753013462241,-480.0,0.00019287,2]
[373446814,1753013462252,-2552.29,0.00019287,2]
[373446815,1753013462263,-420.0,0.00019287,2]
[373446816,1753013462272,-420.0,0.00019287,2]
[373446817,1753013462283,-1832.72,0.00019287,2]
[373446818,1753013462292,-878.37,0.00019287,2]
[373446819,1753013462302,-480.0,0.00019287,2]
[373446820,1753013462312,-480.0,0.00019287,2]
[373446821,1753013462322,-420.0,0.00019287,2]
[373446822,1753013462333,-1226.69,0.00019287,2]
[373446823,1753013462343,-789.12,0.00019287,2]
[373446824,1753013462353,-1848.72,0.00019287,2]
[373446825,1753013462363,-1125.25,0.00019287,2]
[373446826,1753013462373,-480.0,0.00019287,2]
[373446827,1753013462383,-1082.7,0.00019287,2]
[373446828,1753013462394,-480.0,0.00019287,2]
[373446829,1753013462404,-2495.08,0.00019287,2]
[373446830,1753013462415,-480.0,0.00019287,2]
[373446831,1753013462425,-480.0,0.00019287,2]
[373446832,1753013462435,-420.0,0.00019287,2]
[373446833,1753013462444,-1246.44,0.00019287,2]
[373446834,1753013462454,-1021.31,0.00019287,2]
[373446835,1753013462464,-420.0,0.00019287,2]
[373446836,1753013462474,-480.0,0.00019287,2]
[373446837,1753013462484,-635.54,0.00019287,2]
[373446838,1753013462495,-480.0,0.00019287,2]
[373446839,1753013462505,-480.0,0.00019287,2]
[373446840,1753013462514,-480.0,0.00019287,2]
[373446841,1753013462524,-2763.18,0.00019287,2]
[373446842,1753013462534,-265.50644744,0.00019287,2]
[373446843,1753013462544,-480.0,0.00019287,2]
[373446844,1753013462554,-420.0,0.00019287,2]
[373446845,1753013462564,-625.41,0.00019287,2]
[373446846,1753013462575,-480.0,0.00019287,2]
[373446847,1753013462587,-1804.88,0.00019287,2]
[373446848,1753013462597,-480.0,0.00019287,2]
[373446849,1753013462608,-1538.55,0.00019287,2]
[373446850,1753013462617,-515.66,0.00019287,2]
[373446851,1753013462627,-151.0,0.00019287,2]
[373446852,1753013462637,-480.0,0.00019287,2]
[373446853,1753013462647,-254.26946492,0.00019287,2]
[373446854,1753013462657,-9261.19,0.00019287,2]
[373446855,1753013462666,-480.0,0.00019287,2]
[373446856,1753013462676,-480.0,0.00019287,2]
[373446857,1753013462686,-480.0,0.00019287,2]
[373446858,1753013462696,-423.85771338,0.00019287,2]
[373446859,1753013462706,-1355.52,0.00019287,2]
[373446860,1753013462716,-1394.78,0.00019287,2]
[373446861,1753013462726,-480.0,0.00019287,2]
[373446862,1753013462736,-4234.24,0.00019287,2]
[373446863,1753013462746,-895.67,0.00019287,2]
[373446864,1753013462756,-423.08295469,0.00019287,2]
[373446865,1753013462766,-480.0,0.00019287,2]
[373446866,1753013462777,-3560.8,0.00019287,2]
[373446867,1753013462977,-730.7,0.00019287,2]
[373446868,1753013463013,-1757.67,0.00019287,2]
[373446869,1753013463024,-868.35,0.00019287,2]
[373446870,1753013463035,-809.54,0.00019287,2]
[373446871,1753013463046,-480.0,0.00019287,2]
[373446872,1753013463057,-480.0,0.00019287,2]
[373446873,1753013463068,-423.70994888,0.00019287,2]
[373446874,1753013463079,-1017.17,0.00019287,2]
[373446875,1753013463092,-759.65,0.00019287,2]
[373446876,1753013463102,-420.0,0.00019287,2]
[373446877,1753013463112,-35248.29,0.00019287,2]
[373446878,1753013463122,-1021.35,0.00019287,2]
[373446879,1753013463133,-420.0,0.00019287,2]
[373446880,1753013463143,-480.0,0.00019287,2]
[373446881,1753013463153,-480.0,0.00019287,2]
[373446882,1753013463164,-422.87304834,0.00019287,2]
[373446883,1753013463174,-1244.45,0.00019287,2]
[373446884,1753013463185,-766.3,0.00019287,2]
[373446885,1753013463196,-480.0,0.00019287,2]
[373446886,1753013463206,-480.0,0.00019287,2]
[373446887,1753013463218,-3481.18,0.00019287,2]
[373446888,1753013463230,-2045.37,0.00019287,2]
[373446889,1753013463240,-420.0,0.00019287,2]
[373446890,1753013463251,-2165.44,0.00019287,2]
[373446891,1753013463263,-1156.3,0.00019287,2]
[373446892,1753013463274,-420.0,0.00019287,2]
[373446893,1753013463284,-480.0,0.00019287,2]
[373446894,1753013463295,-420.0,0.00019287,2]
[373446895,1753013463306,-709.15,0.00019287,2]
[373446896,1753013463316,-420.0,0.00019287,2]
[373446897,1753013463326,-420.0,0.00019287,2]
[373446898,1753013463338,-480.0,0.00019287,2]
[373446899,1753013463348,-480.0,0.00019287,2]
[373446900,1753013463358,-732.11,0.00019287,2]
[373446901,1753013463368,-788.88,0.00019287,2]
[373446902,1753013463379,-1705.55,0.00019287,2]
[373446903,1753013463389,-5121.82,0.00019287,2]
[373446904,1753013463400,-420.0,0.00019287,2]
[373446905,1753013463411,-420.0,0.00019287,2]
[373446906,1753013463421,-700.45,0.00019287,2]
[373446907,1753013463431,-1115.11,0.00019287,2]
[373446908,1753013463442,-420.0,0.00019287,2]
[373446909,1753013463452,-1820.86,0.00019287,2]
[373446910,1753013463462,-1603.92,0.00019287,2]
[373446911,1753013463473,-2291.6,0.00019287,2]
[373446912,1753013463483,-480.0,0.00019287,2]
[373446913,1753013463495,-480.0,0.00019287,2]
[373446914,1753013463505,-1167.46,0.00019287,2]
[373446915,1753013463515,-425.43052425,0.00019287,2]
[373446916,1753013463525,-151.0,0.00019287,2]
[373446917,1753013463535,-4538.14,0.00019287,2]
[373446918,1753013463545,-480.0,0.00019287,2]
[373446919,1753013463555,-480.0,0.00019287,2]
[373446920,1753013463566,-1927.52,0.00019287,2]
[373446921,1753013463577,-420.0,0.00019287,2]
[373446922,1753013463591,-1766.28,0.00019287,2]
[373446923,1753013463601,-445.16003354,0.00019287,2]
[373446924,1753013463611,-480.0,0.00019287,2]
[373446925,1753013463621,-551.46,0.00019287,2]
[373446926,1753013463632,-480.0,0.00019287,2]
[373446927,1753013463642,-851.47,0.00019287,2]
[373446928,1753013463652,-429.68986151,0.00019287,2]
[373446929,1753013463663,-159.305545,0.00019287,2]
[373446930,1753013463673,-1573.77,0.00019287,2]
[373446931,1753013463683,-816.02,0.00019287,2]
[373446932,1753013463693,-420.0,0.00019287,2]
[373446933,1753013463703,-1319.12,0.00019287,2]
[373446934,1753013463713,-420.0,0.00019287,2]
[373446935,1753013463723,-480.0,0.00019287,2]
[373446936,1753013463733,-159.305545,0.00019287,2]
[373446937,1753013463743,-2564.67,0.00019287,2]
[373446938,1753013463754,-1348.14,0.00019287,2]
[373446939,1753013463764,-151.0,0.00019287,2]
[373446940,1753013463775,-480.0,0.00019287,2]
[373446941,1753013463785,-165.75380712,0.00019287,2]
[373446942,1753013463795,-1121.19,0.00019287,2]
[373446943,1753013463806,-952.71,0.00019287,2]
[373446944,1753013463816,-166.804612,0.00019287,2]
[373446945,1753013463826,-480.0,0.00019287,2]
[373446946,1753013463839,-480.0,0.00019287,2]
[373446947,1753013463849,-2773.41,0.00019287,2]
[373446948,1753013463860,-480.0,0.00019287,2]
[373446949,1753013463870,-480.0,0.00019287,2]
[373446950,1753013463880,-1758.02,0.00019287,2]
[373446951,1753013463891,-480.0,0.00019287,2]
[373446952,1753013463901,-1723.5,0.00019287,2]
[373446953,1753013463912,-1015.04,0.00019287,2]
[373446954,1753013463921,-1539.49,0.00019287,2]
[373446955,1753013463931,-480.0,0.00019287,2]
[373446956,1753013463941,-813.68,0.00019287,2]
[373446957,1753013463951,-1361.52,0.00019287,2]
[373446958,1753013463961,-1434.25,0.00019287,2]
[373446959,1753013463971,-480.0,0.00019287,2]
[373446960,1753013463981,-422.68124605,0.00019287,2]
[373446961,1753013463991,-6436.22,0.00019287,2]
[373446962,1753013464002,-480.0,0.00019287,2]
[373446963,1753013464012,-1549.35,0.00019287,2]
[373446964,1753013464022,-1003.73,0.00019287,2]
[373446965,1753013464033,-480.0,0.00019287,2]
[373446966,1753013464043,-2525.33,0.00019287,2]
[373446967,1753013464053,-1508.86,0.00019287,2]
[373446968,1753013464063,-480.0,0.00019287,2]
[373446969,1753013464073,-717.59,0.00019287,2]
[373446970,1753013464083,-2638.56,0.00019287,2]
[373446971,1753013464095,-1095.0,0.00019287,2]
[373446972,1753013464106,-1701.08,0.00019287,2]
[373446973,1753013464118,-420.0,0.00019287,2]
[373446974,1753013464129,-480.0,0.00019287,2]
[373446975,1753013464140,-1222.94,0.00019287,2]
[373446976,1753013464151,-619.46,0.00019287,2]
[373446977,1753013464162,-480.0,0.00019287,2]
[373446978,1753013464172,-905.54,0.00019287,2]
[373446979,1753013464183,-1715.41,0.00019287,2]
[373446980,1753013464193,-480.0,0.00019287,2]
[373446981,1753013464203,-500.0,0.00019287,2]
[373446982,1753013464213,-480.0,0.00019287,2]
[373446983,1753013464225,-3688.76,0.00019287,2]
[373446984,1753013464236,-2526.18,0.00019287,2]
[373446985,1753013464245,-480.0,0.00019287,2]
[373446986,1753013464255,-1135.56,0.00019287,2]
[373446987,1753013464265,-617.64378677,0.00019287,2]
[373446988,1753013464275,-1150.34,0.00019287,2]
[373446989,1753013464285,-2906.2,0.00019287,2]
[373446990,1753013464294,-480.0,0.00019287,2]
[373446991,1753013464306,-480.0,0.00019287,2]
[373446992,1753013464315,-480.0,0.00019287,2]
[373446993,1753013464325,-1674.29,0.00019287,2]
[373446994,1753013464337,-243.03270758,0.00019287,2]
[373446995,1753013464347,-480.0,0.00019287,2]
[373446996,1753013464356,-533.04,0.00019287,2]
[373446997,1753013464365,-480.0,0.00019287,2]
[373446998,1753013464375,-2332.93,0.00019287,2]
[373446999,1753013464384,-480.0,0.00019287,2]
[373447000,1753013464395,-755.65,0.00019287,2]
[373447001,1753013464404,-5397.35,0.00019287,2]
[373447002,1753013464414,-420.0,0.00019287,2]
[373447003,1753013464424,-480.0,0.00019287,2]
[373447004,1753013464434,-1951.81,0.00019287,2]
[373447005,1753013464443,-480.0,0.00019287,2]
[373447006,1753013464453,-480.0,0.00019287,2]
[373447007,1753013464463,-420.0,0.00019287,2]
[373447008,1753013464473,-1566.95,0.00019287,2]
[373447009,1753013464484,-1606.18,0.00019287,2]
[373447010,1753013464495,-480.0,0.00019287,2]
[373447011,1753013464506,-480.0,0.00019287,2]
[373447012,1753013464516,-3089.34,0.00019287,2]
[373447013,1753013464525,-811.76,0.00019287,2]
[373447014,1753013464535,-480.0,0.00019287,2]
[373447015,1753013464545,-480.0,0.00019287,2]
[373447016,1753013464556,-420.96563079,0.00019287,2]
[373447017,1753013464566,-1644.26787085,0.00019329,2]
[373447018,1753013464576,-242.0,0.00019337,2]
[373447019,1753013464589,-242.0,0.00019338,2]
[373447020,1753013464599,-600.0,0.00019355,2]
[373447021,1753013464608,-600.0,0.00019355,2]
[373447022,1753013464617,-176.63,0.00019355,2]
[373447023,1753013464627,-2191.82855422,0.00019371,2]
[373447024,1753013464636,-1000.0,0.00019373,2]
[373447025,1753013464646,-242.0,0.0001938,2]
[373447026,1753013464655,-934.38,0.00019381,2]
[373447027,1753013464664,-480.0,0.00019381,2]
[373447028,1753013464674,-436.62026076,0.00019381,2]
[373447029,1753013464683,-480.0,0.00019381,2]
[373447030,1753013464692,-525.36907977,0.00019381,2]
[373447031,1753013464701,-480.0,0.00019381,2]
[373447032,1753013464711,-483.48780913,0.00019381,2]
[373447033,1753013464721,-465.61578846,0.00019381,2]
[373447034,1753013464730,-463.5050124,0.00019381,2]
[373447035,1753013464740,-480.0,0.00019381,2]
[373447036,1753013464749,-480.0,0.00019381,2]
[373447037,1753013464758,-500.0,0.00019381,2]
[373447038,1753013464767,-503.58,0.00019381,2]
[373447039,1753013464776,-4380.94,0.00019381,2]
[373447040,1753013464786,-2463.23,0.00019381,2]
[373447041,1753013464795,-5095.48,0.00019381,2]
[373447042,1753013464805,-1204.94,0.00019381,2]
[373447043,1753013464814,-480.0,0.00019381,2]
[373447044,1753013464823,-1452.33,0.00019381,2]
[373447045,1753013464833,-1051.97,0.00019381,2]
[373447046,1753013464844,-1724.16,0.00019381,2]
[373447047,1753013464853,-541.23,0.00019381,2]
[373447048,1753013464863,-151.0,0.00019382,2]
[373447049,1753013464872,-150.0,0.00019385,2]
[373447050,1753013464883,-500.0,0.00019385,2]
[373447051,1753013464892,-124417.1609332,0.00019386,2]
[373447052,1753013464901,-2823.0506458,0.00019386,2]
[373447053,1753013464910,-301.70722659,0.00019396,2]
[373447054,1753013464920,-300.0,0.00019396,2]
[373447055,1753013464929,-503.58,0.00019396,2]
[373447056,1753013464940,-503.58,0.00019396,2]
[373447057,1753013464949,-503.58,0.00019396,2]
[373447058,1753013464959,-300.0,0.00019396,2]
[373447059,1753013464969,-4380.94,0.00019396,2]
[373447060,1753013464978,-4380.94,0.00019396,2]
[373447061,1753013464988,-4380.94,0.00019396,2]
[373447062,1753013464998,-275.34739831,0.00019396,2]
[373447063,1753013465009,-500.0,0.00019396,2]
[373447064,1753013465018,-500.0,0.00019396,2]
[373447065,1753013465027,-500.0,0.00019396,2]
[373447066,1753013465036,-500.0,0.00019396,2]
[373447067,1753013465046,-500.0,0.00019396,2]
[373447068,1753013465057,-342.19718057,0.00019397,2]
[373447069,1753013465067,-480.0,0.00019397,2]
[373447070,1753013465078,-480.0,0.00019397,2]
[373447071,1753013465089,-151.0,0.00019397,2]
[373447072,1753013465098,-151.0,0.00019397,2]
[373447073,1753013465108,-480.0,0.00019397,2]
[373447074,1753013465117,-410.46724761,0.00019397,2]
[373447075,1753013465127,-273.897226,0.00019397,2]
[373447076,1753013465136,-480.0,0.00019397,2]
[373447077,1753013465146,-480.0,0.00019397,2]
[373447078,1753013465155,-480.0,0.00019397,2]
[373447079,1753013465164,-480.0,0.00019397,2]
[373447080,1753013465174,-291.01136077,0.00019397,2]
[373447081,1753013465183,-150.0,0.00019397,2]
[373447082,1753013465192,-513.90407566,0.00019397,2]
[373447083,1753013465202,-480.0,0.00019397,2]
[373447084,1753013465211,-528.17,0.00019397,2]
[373447085,1753013465221,-480.0,0.00019397,2]
[373447086,1753013465233,-480.0,0.00019397,2]
[373447087,1753013465243,-480.0,0.00019397,2]
[373447088,1753013465252,-480.0,0.00019397,2]
[373447089,1753013465263,-768.09,0.00019397,2]
[373447090,1753013465272,-480.0,0.00019397,2]
[373447091,1753013465282,-480.0,0.00019397,2]
[373447092,1753013465291,-480.0,0.00019397,2]
[373447093,1753013465301,-287.18710209,0.00019397,2]
[373447094,1753013465312,-480.0,0.00019397,2]
[373447095,1753013465321,-460.11628484,0.00019397,2]
[373447096,1753013465331,-480.0,0.00019397,2]
[373447097,1753013465341,-480.0,0.00019397,2]
[373447098,1753013465351,-151.0,0.00019397,2]
[373447099,1753013465360,-480.0,0.00019397,2]
[373447100,1753013465369,-480.0,0.00019397,2]
[373447101,1753013465378,-480.0,0.00019397,2]
[373447102,1753013465388,-363.91612337,0.00019397,2]
[373447103,1753013465398,-368.3140908,0.00019397,2]
[373447104,1753013465475,-480.0,0.00019397,2]
[373447105,1753013465484,-480.0,0.00019397,2]
[373447106,1753013465495,-328.16314261,0.00019397,2]
[373447107,1753013465505,-151.0,0.00019397,2]
[373447108,1753013465516,-480.0,0.00019397,2]
[373447109,1753013465526,-480.0,0.00019397,2]
[373447110,1753013465535,-480.0,0.00019397,2]
[373447111,1753013465546,-480.0,0.00019397,2]
[373447112,1753013465556,-480.0,0.00019397,2]
[373447113,1753013465565,-717.14,0.00019397,2]
[373447114,1753013465575,-480.0,0.00019397,2]
[373447115,1753013465586,-480.0,0.00019397,2]
[373447116,1753013465595,-480.0,0.00019397,2]
[373447117,1753013465604,-514.87,0.00019397,2]
[373447118,1753013465613,-151.0,0.00019397,2]
[373447119,1753013465622,-480.0,0.00019397,2]
[373447120,1753013465631,-480.0,0.00019397,2]
[373447121,1753013465641,-500.0,0.00019397,2]
[373447122,1753013465650,-280.32,0.00019397,2]
[373447123,1753013465659,-480.0,0.00019397,2]
[373447124,1753013465668,-3843.99,0.00019397,2]
[373447125,1753013465678,-480.0,0.00019397,2]
[373447126,1753013465687,-539.15,0.00019397,2]
[373447127,1753013465696,-480.0,0.00019397,2]
[373447128,1753013465705,-480.0,0.00019397,2]
[373447129,1753013465715,-1523.74,0.00019397,2]
[373447130,1753013465724,-480.0,0.00019397,2]
[373447131,1753013465732,-480.0,0.00019397,2]
[373447132,1753013465742,-151.0,0.00019397,2]
[373447133,1753013465752,-151.394546,0.00019397,2]
[373447134,1753013465761,-480.0,0.00019397,2]
[373447135,1753013465770,-480.0,0.00019397,2]
[373447136,1753013465780,-1042.47,0.00019397,2]
[373447137,1753013465789,-151.0,0.00019397,2]
[373447138,1753013465798,-480.0,0.00019397,2]
[373447139,1753013465808,-480.0,0.00019397,2]
[373447140,1753013465817,-702.1,0.00019397,2]
[373447141,1753013465826,-151.0,0.00019397,2]
[373447142,1753013465837,-194.78953169,0.00019397,2]
[373447143,1753013465846,-772.87,0.00019397,2]
[373447144,1753013465855,-151.0,0.00019397,2]
[373447145,1753013465865,-480.0,0.00019397,2]
[373447146,1753013465875,-910.08,0.00019397,2]
[373447147,1753013465885,-2302.17,0.00019397,2]
[373447148,1753013465895,-151.0,0.00019397,2]
[373447149,1753013465904,-480.0,0.00019397,2]
[373447150,1753013465913,-272.60273612,0.00019397,2]
[373447151,1753013465924,-480.0,0.00019397,2]
[373447152,1753013465935,-480.0,0.00019397,2]
[373447153,1753013465944,-151.0,0.00019397,2]
[373447154,1753013465954,-480.0,0.00019397,2]
[373447155,1753013465963,-778.06,0.00019397,2]
[373447156,1753013465973,-555.99,0.00019397,2]
[373447157,1753013465982,-480.0,0.00019397,2]
[373447158,1753013465991,-151.0,0.00019397,2]
[373447159,1753013466001,-480.0,0.00019397,2]
[373447160,1753013466010,-151.0,0.00019397,2]
[373447161,1753013466019,-466.41998501,0.00019397,2]
[373447162,1753013466028,-472.35,0.00019397,2]
[373447163,1753013466039,-500.02,0.00019397,2]
[373447164,1753013466048,-480.0,0.00019397,2]
[373447165,1753013466057,-480.0,0.00019397,2]
[373447166,1753013466067,-480.0,0.00019397,2]
[373447167,1753013466076,-153.352034,0.00019397,2]
[373447168,1753013466086,-480.0,0.00019397,2]
[373447169,1753013466095,-1104.39,0.00019397,2]
[373447170,1753013466105,-480.0,0.00019397,2]
[373447171,1753013466114,-446.01365628,0.00019397,2]
[373447172,1753013466123,-688.87,0.00019397,2]
[373447173,1753013466133,-908.18,0.00019397,2]
[373447174,1753013466143,-480.0,0.00019397,2]
[373447175,1753013466152,-480.0,0.00019397,2]
[373447176,1753013466161,-480.0,0.00019397,2]
[373447177,1753013466171,-480.0,0.00019397,2]
[373447178,1753013466180,-770.75,0.00019397,2]
[373447179,1753013466190,-480.0,0.00019397,2]
[373447180,1753013466200,-480.0,0.00019397,2]
[373447181,1753013466209,-151.0,0.00019397,2]
[373447182,1753013466222,-480.0,0.00019397,2]
[373447183,1753013466231,-452.92183235,0.00019397,2]
[373447184,1753013466240,-505.12,0.00019397,2]
[373447185,1753013466250,-690.41,0.00019397,2]
[373447186,1753013466260,-480.0,0.00019397,2]
[373447187,1753013466269,-480.0,0.00019397,2]
[373447188,1753013466279,-480.0,0.00019397,2]
[373447189,1753013466288,-435.02733259,0.00019397,2]
[373447190,1753013466298,-490.06,0.00019397,2]
[373447191,1753013466308,-480.0,0.00019397,2]
[373447192,1753013466317,-151.0,0.00019397,2]
[373447193,1753013466326,-480.0,0.00019397,2]
[373447194,1753013466336,-711.83,0.00019397,2]
[373447195,1753013466346,-446.57979155,0.00019397,2]
[373447196,1753013466355,-665.57,0.00019397,2]
[373447197,1753013466365,-480.0,0.00019397,2]
[373447198,1753013466375,-480.0,0.00019397,2]
[373447199,1753013466384,-480.0,0.00019397,2]
[373447200,1753013466393,-480.0,0.00019397,2]
[373447201,1753013466402,-480.0,0.00019397,2]
[373447202,1753013466411,-480.0,0.00019397,2]
[373447203,1753013466422,-559.66,0.00019397,2]
[373447204,1753013466431,-480.0,0.00019397,2]
[373447205,1753013466440,-151.0,0.00019397,2]
[373447206,1753013466449,-480.0,0.00019397,2]
[373447207,1753013466459,-1059.97,0.00019397,2]
[373447208,1753013466467,-480.0,0.00019397,2]
[373447209,1753013466477,-480.0,0.00019397,2]
[373447210,1753013466486,-480.0,0.00019397,2]
[373447211,1753013466496,-480.0,0.00019397,2]
[373447212,1753013466505,-480.0,0.00019397,2]
[373447213,1753013466514,-537.05,0.00019397,2]
[373447214,1753013466523,-480.0,0.00019397,2]
[373447215,1753013466533,-606.09923135,0.00019397,2]
[373447216,1753013466542,-480.0,0.00019397,2]
[373447217,1753013466551,-480.0,0.00019397,2]
[373447218,1753013466561,-274.8576334,0.00019397,2]
[373447219,1753013466570,-480.0,0.00019397,2]
[373447220,1753013466580,-480.0,0.00019397,2]
[373447221,1753013466590,-527.25,0.00019397,2]
[373447222,1753013466603,-480.0,0.00019397,2]
[373447223,1753013466612,-480.0,0.00019397,2]
[373447224,1753013466622,-480.0,0.00019397,2]
[373447225,1753013466631,-480.0,0.00019397,2]
[373447226,1753013466640,-1151.96,0.00019397,2]
[373447227,1753013466650,-480.0,0.00019397,2]
[373447228,1753013466660,-480.0,0.00019397,2]
[373447229,1753013466669,-480.0,0.00019397,2]
[373447230,1753013466678,-480.0,0.00019397,2]
[373447231,1753013466687,-480.0,0.00019397,2]
[373447232,1753013466697,-177.164246,0.00019397,2]
[373447233,1753013466706,-480.0,0.00019397,2]
[373447234,1753013466716,-917.78,0.00019397,2]
[373447235,1753013466726,-177.164246,0.00019397,2]
[373447236,1753013466735,-480.0,0.00019397,2]
[373447237,1753013466744,-480.0,0.00019397,2]
[373447238,1753013466753,-480.0,0.00019397,2]
[373447239,1753013466763,-480.0,0.00019397,2]
[373447240,1753013466772,-688.83,0.00019397,2]
[373447241,1753013466781,-480.0,0.00019397,2]
[373447242,1753013466790,-512.72418518,0.00019397,2]
[373447243,1753013466800,-1080.81,0.00019397,2]
[373447244,1753013466809,-480.0,0.00019397,2]